bitfinex/quotes_ETHUSD_20260308
["timestamp","ask_amount","ask_price","bid_price","bid_amount"]
[1772988354757,0.64224318,1936.9,1936.3,1.95943043]
[1772988355160,1.93298423,1936.9,1936.3,1.95938735]
[1772988355452,0.64224318,1936.9,1936.3,1.95938735]
[1772988358384,0.64224318,1936.8,1936.0,1.29132231]
[1772988358883,0.64224318,1936.8,1936.0,1.9596305]
[1772988360654,0.64224318,1936.6,1936.0,1.9596305]
[1772988360860,0.64224318,1936.6,1935.9,1.29133096]
[1772988362084,0.64224318,1936.6,1935.9,1.95963915]
[1772988362258,0.64224318,1936.6,1936.0,0.66830819]
[1772988362459,0.64224318,1936.6,1935.8,1.95971301]
[1772988362669,0.64058264,1936.4,1935.7,5.1659101]
[1772988362867,0.64058264,1936.4,1935.6,1.95988436]
[1772988363066,0.64058264,1936.4,1935.7,0.69449501]
[1772988364764,0.66172026,1936.6,1935.9,0.68758909]
[1772988365095,0.001,1936.3,1935.9,0.68758909]
[1772988366397,0.66172026,1936.8,1935.9,0.68758909]
[1772988366767,0.66172026,1936.7,1936.0,1.29132231]
[1772988367213,0.66172026,1936.7,1936.0,1.9789114]
[1772988367388,0.66172026,1936.7,1936.0,1.29132231]
[1772988369077,0.66172026,1936.5,1935.8,1.29145572]
[1772988371200,0.66172026,1936.5,1935.9,0.68758909]
[1772988371378,1.95270939,1936.5,1935.9,0.68758909]
[1772988371794,0.66172026,1936.6,1935.9,0.68758909]
[1772988371995,0.66172026,1936.5,1935.9,0.68758909]
[1772988373294,0.66172026,1936.4,1935.7,0.68758909]
[1772988375299,0.66172026,1936.4,1935.8,1.29145572]
[1772988375912,0.66172026,1936.4,1935.8,1.97904481]
[1772988376710,0.66172026,1936.3,1935.6,5.16620827]
[1772988376998,0.66172026,1936.3,1935.8,0.0011]
[1772988377172,0.66272026,1936.3,1935.8,0.0011]
[1772988377570,0.66172026,1936.1,1935.8,0.0011]
[1772988380101,0.66172026,1936.2,1935.8,0.0011]
[1772988380275,0.66172026,1936.2,1935.8,0.68868909]
[1772988380603,0.66172026,1936.2,1935.8,0.0011]
[1772988383605,0.66172026,1936.2,1935.8,1.29255572]
[1772988385214,0.66172026,1936.1,1935.8,1.29255572]
[1772988385709,0.66172026,1936.1,1935.8,0.0011]
[1772988389077,0.66172026,1936.1,1935.9,0.0011]
[1772988390217,0.66172026,1936.0,1935.9,0.0011]
[1772988390508,0.66172026,1936.0,1935.6,0.0011]
[1772988391483,0.66172026,1936.0,1935.6,1.29268488]
[1772988391697,0.66172026,1936.0,1935.6,0.0011]
[1772988392279,0.66172026,1936.0,1934.4,0.68758909]
[1772988392280,0.66172026,1935.7,1934.4,0.68758909]
[1772988392500,0.66172026,1935.2,1934.4,1.29236412]
[1772988392703,0.63851847,1935.0,1934.4,1.29236412]
[1772988393698,0.63851847,1935.0,1934.3,0.65891553]
[1772988394320,0.63851847,1934.9,1934.4,1.2923904]
[1772988394907,0.63851847,1934.9,1934.1,5.82901934]
[1772988395223,0.63851847,1934.9,1934.2,0.60891553]
[1772988396326,0.63851847,1934.9,1934.3,1.95137274]
[1772988396837,0.63851847,1935.1,1934.4,0.65891553]
[1772988398641,0.63851847,1935.1,1934.5,1.29232359]
[1772988398642,0.63851847,1935.0,1934.5,1.29232359]
[1772988399318,0.63851847,1935.0,1934.3,1.29241688]
[1772988400027,0.63851847,1935.0,1934.3,1.95133241]
[1772988400401,1.29205451,1935.0,1934.3,1.95133241]
[1772988400603,0.63851847,1934.9,1934.3,1.95133241]
[1772988400802,0.63851847,1934.9,1934.5,0.0011]
[1772988401132,0.001,1935.0,1934.5,0.66001553]
[1772988402022,0.63951847,1935.0,1934.5,0.66001553]
[1772988402401,0.63951847,1935.0,1934.5,0.0011]
[1772988403918,0.63951847,1935.0,1934.5,0.66001553]
[1772988404115,0.001,1935.0,1934.5,0.66001553]
[1772988404431,5.16656574,1935.6,1934.6,0.65891553]
[1772988404432,0.63851847,1935.6,1934.6,0.65891553]
[1772988404629,0.63851847,1935.6,1934.8,0.65891553]
[1772988404630,1.93012254,1935.6,1934.8,0.65891553]
[1772988404801,0.64005733,1936.0,1934.8,0.65891553]
[1772988405128,0.63851847,1935.9,1934.8,0.65891553]
[1772988406549,0.63851847,1935.7,1934.9,1.29205643]
[1772988407439,0.63851847,1935.9,1935.0,0.65891553]
[1772988407599,1.92991361,1935.9,1935.0,0.65891553]
[1772988407805,0.63851847,1935.8,1935.0,0.65891553]
[1772988408612,0.63851847,1935.8,1935.1,1.29192289]
[1772988408817,0.63851847,1935.7,1934.8,0.65891553]
[1772988410707,1.93142792,1936.0,1935.0,0.65891553]
[1772988411120,1.29290945,1936.0,1935.0,0.65891553]
[1772988411418,0.63851847,1935.9,1935.0,0.65891553]
[1772988412939,1.92994596,1935.9,1935.1,1.29192289]
[1772988413110,0.63851847,1935.8,1935.1,1.95083842]
[1772988413310,0.63851847,1935.8,1935.2,0.65891553]
[1772988413512,0.63951847,1935.8,1935.2,0.65891553]
[1772988416020,0.001,1935.8,1935.4,0.65891553]
[1772988418019,0.001,1935.8,1935.5,1.95057143]
[1772988418518,0.001,1935.8,1935.6,0.65891553]
[1772988419828,0.63951847,1935.8,1935.4,1.29168391]
[1772988420023,0.001,1935.8,1935.4,1.29168391]
[1772988420544,0.001,1935.8,1935.5,0.65891553]
[1772988420848,0.001,1935.8,1935.4,1.29168391]
[1772988421354,0.001,1936.2,1935.5,0.65891553]
[1772988421852,0.001,1936.3,1935.5,0.65891553]
[1772988422023,0.001,1936.3,1935.7,0.65891553]
[1772988422231,0.63951847,1936.3,1935.7,0.65891553]
[1772988422966,0.001,1936.3,1935.7,0.65891553]
[1772988424235,0.66781213,1936.1,1935.3,0.68791255]
[1772988424546,0.66781213,1935.9,1935.1,0.68791255]
[1772988425236,0.66781213,1935.9,1935.1,0.68901255]
[1772988426352,0.66432641,1935.7,1935.1,1.98092161]
[1772988426647,1.95576224,1935.9,1935.2,0.70217011]
[1772988427652,0.66432641,1935.8,1935.2,0.70217011]
[1772988427950,0.66432641,1936.0,1935.2,0.70217011]
[1772988428326,1.29138901,1935.9,1935.3,1.29178938]
[1772988428527,1.95571542,1935.9,1935.3,1.29178938]
[1772988428944,3.3406728,1936.0,1935.4,0.70217011]
[1772988429525,1.29125561,1936.1,1935.4,0.70217011]
[1772988429819,0.66432641,1936.0,1935.2,1.99397755]
[1772988430452,1.95571542,1935.9,1935.2,1.99397755]
[1772988430848,1.29138901,1935.9,1935.2,1.99397755]
[1772988431056,0.66432641,1935.8,1935.2,1.99397755]
[1772988431466,0.66432641,1935.8,1935.2,1.99402423]
[1772988431666,0.66432641,1935.8,1935.2,0.70217011]
[1772988432459,1.95581986,1935.8,1935.2,1.9940196]
[1772988436845,0.66432641,1935.8,1935.2,1.9940196]
[1772988437050,3.34967174,1936.0,1935.3,0.70217011]
[1772988437547,3.34967174,1936.0,1935.3,0.70327011]
[1772988438270,0.66432641,1935.9,1935.3,0.70327011]
[1772988438668,0.66432641,1935.9,1935.3,0.0011]
[1772988439168,1.29145572,1935.8,1935.3,0.0011]
[1772988439362,1.29145572,1935.8,1935.3,0.70327011]
[1772988439568,1.95574638,1935.9,1935.3,0.70327011]
[1772988439771,5.1651694,1936.1,1935.3,0.70327011]
[1772988440070,5.82949581,1936.1,1935.3,0.70327011]
[1772988440265,1.95558202,1936.1,1935.3,0.70327011]
[1772988440566,1.2922392,1936.2,1935.3,0.70327011]
[1772988441065,1.95656561,1936.2,1935.3,0.70327011]
[1772988441269,1.95656561,1936.2,1935.5,0.70217011]
[1772988443278,1.95656561,1936.2,1935.5,1.29162773]
[1772988443574,1.95656561,1936.2,1935.6,0.70217011]
[1772988443771,1.29220484,1936.2,1935.6,0.70217011]
[1772988444951,0.001,1936.2,1935.6,0.70217011]
[1772988445265,0.001,1936.2,1935.8,0.70217011]
[1772988448055,0.001,1936.2,1935.8,1.99357857]
[1772988449580,0.001,1936.2,1935.9,0.70217011]
[1772988449810,0.001,1936.3,1936.1,0.70217011]
[1772988450857,0.001,1936.3,1935.9,0.70217011]
[1772988451068,0.001,1936.3,1935.9,1.99355381]
[1772988454084,1.6512086,1936.7,1936.0,0.67026288]
[1772988454282,2.29603481,1936.7,1936.0,0.67026288]
[1772988454786,0.64482621,1936.6,1936.0,0.67026288]
[1772988455788,0.64482621,1936.6,1936.0,1.96154316]
[1772988455789,1.29098889,1936.5,1936.0,1.96154316]
[1772988457315,1.93579489,1936.6,1936.0,1.96154316]
[1772988457470,0.64482621,1936.6,1936.0,1.96154316]
[1772988457670,1.29090156,1936.7,1936.1,0.67026288]
[1772988457867,2.04436507,1937.0,1936.3,0.67026288]
[1772988458187,3.33507218,1937.0,1936.3,0.67026288]
[1772988458581,3.33502778,1937.0,1936.3,0.67026288]
[1772988458782,3.33602778,1937.0,1936.3,0.67026288]
[1772988459591,0.001,1937.3,1936.3,0.67026288]
[1772988459890,1.2914887,1937.3,1936.3,0.67026288]
[1772988460090,1.2914887,1937.3,1936.5,0.67026288]
[1772988461991,0.001,1937.3,1936.7,0.67026288]
[1772988462193,0.001,1937.6,1936.7,0.67026288]
[1772988462194,1.93614011,1937.6,1936.7,0.67026288]
[1772988462490,0.64482621,1937.5,1936.7,0.67026288]
[1772988463780,1.2913139,1937.6,1936.7,0.67026288]
[1772988463986,0.001,1937.6,1936.8,1.29078893]
[1772988464187,0.001,1937.6,1936.9,0.67026288]
[1772988466792,0.001,1937.6,1937.0,1.29065565]
[1772988466970,0.001,1937.6,1937.1,0.67026288]
[1772988469608,0.001,1937.6,1937.2,1.96078528]
[1772988470185,0.001,1937.6,1937.3,0.67026288]
[1772988472015,0.001,1937.6,1937.3,1.96067479]
[1772988472192,0.001,1937.6,1937.3,0.67026288]
[1772988473004,0.64582621,1937.6,1936.7,1.213]
[1772988473210,0.64582621,1937.6,1936.8,0.67026288]
[1772988473800,0.001,1937.6,1936.8,0.67026288]
[1772988474004,0.001,1937.6,1937.0,0.67026288]
[1772988474308,0.001,1937.6,1937.2,0.0011]
[1772988474492,0.001,1937.6,1937.3,0.67026288]
[1772988474693,0.001,1937.5,1937.3,0.67026288]
[1772988475885,0.001,1937.6,1937.3,0.67026288]
[1772988476208,0.001,1937.6,1937.5,0.67026288]
[1772988478416,0.001,1937.6,1937.5,1.96058546]
[1772988480220,0.001,1937.6,1937.5,0.67026288]
[1772988481210,0.001,1937.6,1937.5,1.96058546]
[1772988482220,0.001,1937.6,1937.5,0.67026288]
[1772988484613,0.6473216,1937.6,1937.2,0.0011]
[1772988486609,0.65413428,1937.4,1936.9,0.0011]
[1772988487533,0.65413428,1937.4,1937.3,0.0011]
[1772988487693,0.65413428,1937.4,1937.1,0.0011]
[1772988488924,0.65413428,1937.2,1936.9,0.0011]
[1772988489302,1.395,1937.5,1936.9,0.67604815]
[1772988489496,3.33946256,1937.5,1936.9,0.67604815]
[1772988489702,0.65413428,1937.4,1936.9,0.67604815]
[1772988490839,1.395,1937.5,1937.0,0.67494815]
[1772988491016,0.001,1937.5,1937.0,0.67494815]
[1772988491221,1.94547128,1937.5,1937.0,0.67494815]
[1772988491525,0.65413428,1937.4,1936.9,1.29177847]
[1772988491843,0.65413428,1937.4,1936.9,1.96672662]
[1772988492511,0.001,1937.5,1937.0,0.67494815]
[1772988493310,0.001,1937.5,1937.1,1.29058902]
[1772988493509,0.001,1937.5,1937.1,0.67494815]
[1772988493917,0.65513428,1937.5,1937.1,0.67494815]
[1772988495317,0.001,1937.5,1937.1,0.67494815]
[1772988497631,1.29132258,1937.5,1937.1,0.67494815]
[1772988499421,1.29132258,1937.5,1937.2,0.0011]
[1772988500030,0.65513428,1937.5,1937.2,0.0011]
[1772988504043,0.001,1937.5,1937.3,0.67494815]
[1772988504750,0.001,1937.5,1937.2,0.0011]
[1772988504751,0.65513428,1937.5,1937.2,0.0011]
[1772988505524,0.65513428,1937.5,1937.0,0.0011]
[1772988506029,0.65413428,1937.3,1937.0,0.0011]
[1772988508149,1.2905224,1937.2,1937.0,0.0011]
[1772988510752,1.94465668,1937.2,1937.0,0.0011]
[1772988511550,1.94465668,1937.2,1937.1,0.0011]
[1772988516351,0.69854238,1937.1,1936.8,0.0011]
[1772988516524,0.69854238,1937.1,1936.6,0.6988782]
[1772988517428,0.69854238,1937.0,1936.4,0.6988782]
[1772988518955,0.69854238,1936.8,1936.4,0.6988782]
[1772988519942,0.69854238,1936.8,1936.2,0.6988782]
[1772988520936,1.98939795,1936.7,1936.2,0.6988782]
[1772988523468,0.69854238,1936.6,1936.2,0.6988782]
[1772988525231,0.69854238,1936.6,1936.3,0.0011]
[1772988525427,1.29098889,1936.5,1936.3,0.0011]
[1772988526063,0.69854238,1936.4,1936.0,0.00263886]
[1772988527645,0.69854238,1936.2,1936.0,0.00263886]
[1772988529662,1.98979799,1936.1,1936.0,0.00263886]
[1772988534569,1.98979799,1936.1,1935.7,0.6999782]
[1772988536551,1.412,1936.2,1935.7,1.29261277]
[1772988536757,2.70321334,1936.2,1935.8,0.6988782]
[1772988537392,2.70321334,1936.2,1935.8,0.6999782]
[1772988537557,0.001,1936.1,1935.8,0.6999782]
[1772988538451,2.11154238,1936.5,1935.9,0.6988782]
[1772988538651,1.98966462,1936.3,1935.9,0.6988782]
[1772988540041,1.29112224,1936.3,1935.9,0.6988782]
[1772988540242,1.98951291,1936.6,1936.0,0.6988782]
[1772988541892,1.98951291,1936.6,1936.1,0.6988782]
[1772988542564,0.69854238,1936.5,1935.9,1.99023256]
[1772988542782,0.69717645,1936.3,1935.8,0.68554316]
[1772988544892,1.29118892,1936.2,1935.9,0.67251791]
[1772988545297,1.98833363,1936.3,1935.9,0.67251791]
[1772988546396,0.69576002,1936.2,1935.9,0.67251791]
[1772988548597,1.98698434,1936.2,1935.9,0.67251791]
[1772988549590,1.98698434,1936.2,1935.9,0.67361791]
[1772988549999,1.98798434,1936.2,1935.9,0.67361791]
[1772988551799,0.69576002,1936.1,1935.9,0.0011]
[1772988556173,1.988007,1936.2,1935.9,0.67361791]
[1772988556374,1.29224698,1936.2,1935.9,0.67361791]
[1772988556575,0.001,1936.2,1936.0,0.67251791]
[1772988561705,0.001,1936.2,1936.1,0.0011]
[1772988562206,2.71104085,1936.5,1936.2,0.67251791]
[1772988562702,1.29104085,1936.5,1936.2,0.67251791]
[1772988562884,1.98680087,1936.5,1936.2,0.67251791]
[1772988564992,1.29104085,1936.5,1936.2,0.67251791]
[1772988568082,1.98680087,1936.5,1936.2,0.67251791]
[1772988569879,0.69576002,1936.5,1936.2,0.67251791]
[1772988570083,1.98676667,1936.5,1936.2,0.67251791]
[1772988571299,5.85906042,1936.8,1936.3,0.67251791]
[1772988571713,0.69576002,1936.7,1936.3,0.67251791]
[1772988572381,1.98661783,1936.7,1936.3,0.67251791]
[1772988573825,0.001,1936.4,1936.3,1.96364015]
[1772988574122,1.29083304,1936.8,1936.4,0.68003417]
[1772988574482,1.29072228,1936.9,1936.5,0.68003417]
[1772988574901,0.65805871,1936.8,1936.3,0.68003417]
[1772988576714,1.94891428,1936.7,1936.3,0.68003417]
[1772988578223,0.65805871,1936.6,1936.3,0.68003417]
[1772988579294,1.94891428,1936.7,1936.3,0.68003417]
[1772988581127,0.65805871,1936.7,1936.3,1.97113761]
[1772988581326,1.94891736,1936.7,1936.3,1.97113761]
[1772988581627,1.94891736,1936.7,1936.3,0.68003417]
[1772988583607,0.65805871,1936.6,1936.3,0.68003417]
[1772988585329,0.65805871,1936.6,1936.4,0.0011]
[1772988585497,0.65905871,1936.6,1936.4,0.0011]
[1772988588131,0.001,1936.6,1936.4,0.68113417]
[1772988595427,0.001,1936.6,1936.4,0.0011]
[1772988595609,0.001,1936.6,1936.4,0.68113417]
[1772988599833,0.001,1936.6,1936.5,0.0011]
[1772988603349,0.65881453,1936.6,1936.5,0.0011]
[1772988609148,0.001,1936.6,1936.5,0.0011]
[1772988627763,0.65660519,1936.5,1936.1,0.0011]
[1772988628133,1.0368936,1936.4,1935.9,0.0011]
[1772988628335,0.65660519,1936.3,1935.7,0.0011]
[1772988628529,1.434,1936.6,1935.7,0.0011]
[1772988628530,0.65660519,1936.1,1935.7,0.0011]
[1772988628742,0.65660519,1936.0,1935.7,0.0011]
[1772988629655,0.65660519,1935.8,1935.7,0.0011]
[1772988630232,0.65660519,1935.8,1935.5,0.0011]
[1772988630575,0.65660519,1935.7,1935.2,0.0011]
[1772988631268,0.65660519,1935.6,1935.2,0.0011]
[1772988631635,0.65660519,1935.4,1935.2,0.0011]
[1772988635655,1.94838202,1935.4,1935.2,0.0011]
[1772988635966,0.61182864,1935.3,1935.2,0.0011]
[1772988637239,1.29172949,1935.4,1935.2,0.0011]
[1772988637444,1.90355813,1935.4,1935.3,0.0011]
[1772988637666,0.001,1935.3,1935.1,0.58493505]
[1772988638747,0.001,1935.3,1935.1,0.0011]
[1772988638748,0.61282864,1935.3,1935.1,0.0011]
[1772988639561,0.61282864,1935.3,1935.0,0.00263886]
[1772988640444,0.61282864,1935.3,1935.0,0.58647391]
[1772988640770,1.90368477,1935.2,1935.0,0.00263886]
[1772988641471,0.61182864,1935.1,1934.4,0.58383505]
[1772988641975,1.429,1935.2,1934.4,0.58383505]
[1772988642146,0.001,1935.3,1934.4,0.58383505]
[1772988642343,1.29279108,1935.3,1934.4,0.58383505]
[1772988642682,0.001,1935.3,1934.4,0.58383505]
[1772988642844,0.61182864,1935.8,1934.7,0.58383505]
[1772988643042,1.90328985,1935.8,1934.8,0.58383505]
[1772988643447,0.61182864,1935.7,1934.8,0.58383505]
[1772988644088,1.90327391,1935.9,1934.8,0.58383505]
[1772988644290,1.29144527,1935.9,1934.8,0.58383505]
[1772988644504,1.90469622,1936.0,1934.8,0.58383505]
[1772988644789,0.6133675,1936.0,1934.8,0.58383505]
[1772988644946,0.61182864,1935.9,1935.0,0.58383505]
[1772988645148,0.00153886,1936.0,1935.0,0.58383505]
[1772988645149,0.6133675,1936.0,1935.0,0.58383505]
[1772988647773,0.6133675,1936.0,1935.2,0.58383505]
[1772988649364,0.001,1935.8,1935.2,0.58383505]
[1772988649757,0.001,1935.8,1935.3,1.29178938]
[1772988650078,0.001,1935.8,1935.4,0.58383505]
[1772988650648,0.61282864,1935.8,1935.4,0.58383505]
[1772988652663,0.001,1935.8,1935.6,0.58383505]
[1772988653679,0.42450456,1936.2,1935.6,0.58383505]
[1772988653978,1.0363332,1936.2,1935.6,0.58383505]
[1772988654750,1.0363332,1936.2,1935.7,1.29152244]
[1772988654981,1.0363332,1936.2,1935.8,0.58383505]
[1772988657394,5.16488101,1936.6,1936.0,0.58383505]
[1772988657395,0.61282864,1936.6,1936.0,0.58383505]
[1772988657887,0.61182864,1936.9,1936.0,0.58383505]
[1772988659668,0.61182864,1936.9,1936.1,1.29125561]
[1772988659881,0.61182864,1936.9,1936.2,0.58383505]
[1772988661564,0.001,1936.8,1936.2,0.58383505]
[1772988661778,0.001,1936.8,1936.3,1.29112224]
[1772988661976,0.001,1936.8,1936.4,0.58383505]
[1772988663291,0.56811562,1936.8,1936.3,0.56800308]
[1772988664900,0.57599892,1936.6,1936.1,1.85520275]
[1772988665396,0.57599892,1936.6,1936.1,1.29125561]
[1772988665580,0.57599892,1936.6,1936.2,0.56394714]
[1772988666118,0.57699892,1936.8,1936.2,0.56394714]
[1772988666271,0.57699892,1936.8,1935.8,6.37002246]
[1772988666272,0.57599892,1936.7,1935.7,0.56394714]
[1772988667170,0.57599892,1936.5,1935.9,1.85533615]
[1772988667367,0.57599892,1936.7,1936.0,0.58109264]
[1772988667980,0.001,1936.8,1936.0,0.58109264]
[1772988668305,0.57699892,1936.8,1936.0,0.58109264]
[1772988668490,0.001,1936.8,1936.0,0.58109264]
[1772988669071,0.57699892,1936.8,1936.0,0.58109264]
[1772988669288,0.57699892,1936.8,1936.2,0.56394714]
[1772988670016,0.001,1936.8,1936.2,0.56394714]
[1772988670776,0.57753778,1937.0,1936.3,0.56394714]
[1772988671596,0.57753778,1937.0,1936.5,0.56394714]
[1772988674022,0.001,1936.9,1936.6,1.85486937]
[1772988675830,0.57699892,1936.9,1936.6,1.85486937]
[1772988677717,0.57699892,1936.9,1936.5,1.85491702]
[1772988678216,0.57699892,1936.9,1936.6,0.56394714]
[1772988679620,0.001,1936.9,1936.6,0.56394714]
[1772988680319,0.001,1937.1,1936.8,0.56394714]
[1772988680703,0.001,1937.1,1936.8,0.61557869]
[1772988681006,0.001,1937.4,1936.9,0.56394714]
[1772988681311,0.001,1937.5,1936.9,0.56394714]
[1772988682030,0.001,1937.6,1936.8,0.56394714]
[1772988682198,0.001,1937.6,1937.0,0.56394714]
[1772988682717,0.57753778,1938.0,1937.2,0.56394714]
[1772988683028,0.57599892,1937.9,1937.2,0.56394714]
[1772988683629,0.00153886,1938.0,1937.2,0.56394714]
[1772988684027,0.57753778,1938.0,1937.2,0.56394714]
[1772988685402,0.57753778,1938.0,1937.4,0.56394714]
[1772988686300,0.001,1937.5,1937.4,0.56394714]
[1772988686499,0.57753778,1938.0,1937.4,0.56394714]
[1772988687125,0.00153886,1938.0,1937.4,0.56394714]
[1772988687330,0.00153886,1938.0,1937.6,0.56394714]
[1772988687843,0.57753778,1938.0,1937.5,1.85426972]
[1772988688201,0.57753778,1938.0,1937.1,1.77494714]
[1772988688830,0.57753778,1938.0,1937.2,0.56394714]
[1772988689819,0.57599892,1937.8,1936.8,0.56394714]
[1772988692322,0.57599892,1937.7,1937.0,0.56394714]
[1772988692544,1.86609876,1937.9,1937.0,0.56394714]
[1772988692913,1.86605576,1937.9,1937.0,0.56394714]
[1772988693653,0.57599892,1937.9,1937.0,0.56394714]
[1772988694723,0.00153886,1938.0,1937.2,0.54067851]
[1772988695138,1.29152926,1938.0,1937.2,0.54067851]
[1772988695339,0.53763996,1937.9,1937.2,0.54067851]
[1772988695556,0.53763996,1937.9,1937.1,2.50258902]
[1772988695756,0.53763996,1937.9,1937.1,3.04326753]
[1772988696056,0.53763996,1937.9,1937.2,0.54067851]
[1772988697067,0.53763996,1937.7,1937.3,1.29045578]
[1772988699760,1.29112281,1937.8,1937.3,1.29045578]
[1772988700066,0.001,1937.8,1937.4,0.54067851]
[1772988700946,0.001,1937.8,1937.6,0.54067851]
[1772988704063,0.53863996,1937.8,1937.3,0.54067851]
[1772988706635,0.53763996,1937.6,1937.1,1.83234298]
[1772988708364,1.82880418,1937.8,1937.2,0.54067851]
[1772988708874,1.82880418,1937.8,1937.4,0.54067851]
[1772988710681,0.53863996,1937.8,1937.4,0.54067851]
[1772988710880,1.82877006,1937.8,1937.4,0.54067851]
[1772988711075,1.82877006,1937.8,1937.2,1.83115911]
[1772988711076,0.53763996,1937.7,1937.2,1.83115911]
[1772988711660,0.53763996,1937.7,1937.3,0.54067851]
[1772988713254,0.53763996,1937.7,1937.3,1.83108046]
[1772988713785,0.53763996,1937.6,1937.2,0.54067851]
[1772988714090,1.29021418,1937.7,1937.2,0.54067851]
[1772988714456,1.82785414,1937.7,1937.2,0.54067851]
[1772988714658,0.53763996,1937.6,1937.3,0.05161823]
[1772988714858,0.53763996,1937.6,1937.1,1.29166712]
[1772988715160,0.53863996,1937.8,1937.3,1.83113429]
[1772988717099,0.53763996,1937.6,1937.2,1.29050567]
[1772988717414,0.53763996,1937.6,1937.1,1.8323137]
[1772988718976,0.53763996,1937.6,1937.1,0.0011]
[1772988719306,0.53763996,1937.4,1937.1,0.0011]
[1772988721010,1.29117647,1937.8,1937.1,0.54177851]
[1772988721301,0.53863996,1937.8,1937.2,1.83120091]
[1772988721772,0.53863996,1937.8,1937.2,1.83230091]
[1772988721974,0.53863996,1937.7,1937.2,1.83230091]
[1772988722193,0.53863996,1937.7,1937.2,0.54177851]
[1772988722391,0.53863996,1937.7,1937.2,0.0011]
[1772988724307,1.83283308,1937.6,1937.2,0.0011]
[1772988724472,0.5425771,1937.6,1937.2,0.53446833]
[1772988724672,0.5425771,1937.6,1937.2,0.0011]
[1772988727494,1.29032258,1937.5,1937.2,0.0011]
[1772988729383,0.53208325,1937.5,1937.2,0.0011]
[1772988730025,0.53208325,1937.5,1937.0,0.0011]
[1772988730308,0.53208325,1937.5,1936.8,0.0011]
[1772988730512,0.53208325,1937.3,1936.8,0.0011]
[1772988730917,0.53208325,1937.3,1936.8,0.57441461]
[1772988731124,0.53208325,1937.6,1936.9,0.57331461]
[1772988733534,1.82240583,1937.5,1937.0,1.86507026]
[1772988734836,1.82240583,1937.5,1937.1,0.57331461]
[1772988738025,1.82240583,1937.5,1937.1,1.86389657]
[1772988738345,1.82241551,1937.5,1937.1,0.57331461]
[1772988739943,0.53208325,1937.4,1937.1,0.57331461]
[1772988745547,0.53308325,1937.4,1937.1,0.57331461]
[1772988747931,1.29139041,1937.4,1937.0,0.0011]
[1772988748133,0.53208325,1937.3,1937.0,0.0011]
[1772988748462,1.82260565,1937.2,1937.0,0.0011]
[1772988748961,0.53208325,1937.1,1937.0,0.0011]
[1772988760367,0.53208325,1937.1,1936.9,0.0011]
[1772988760368,0.54719125,1937.0,1936.9,0.0011]
[1772988762541,1.8378469,1937.0,1936.9,0.0011]
[1772988764548,0.54719125,1936.9,1936.7,0.0011]
[1772988764750,0.54719125,1936.8,1936.5,0.0011]
[1772988764966,0.54719125,1936.8,1936.5,0.52296099]
[1772988765189,1.416,1936.9,1936.5,0.52296099]
[1772988765374,1.96319125,1936.9,1936.5,0.52296099]
[1772988765578,0.54719125,1936.8,1936.5,0.52296099]
[1772988766751,1.29085557,1936.7,1936.5,0.52296099]
[1772988769180,1.29085557,1936.7,1936.6,0.0011]
[1772988769982,1.83802876,1936.8,1936.6,0.0011]
[1772988771885,0.54719125,1936.7,1936.6,0.0011]
[1772988773577,0.54719125,1936.7,1936.4,0.0011]
[1772988773783,1.83811348,1936.6,1936.4,0.0011]
[1772988774083,0.54719125,1936.6,1936.4,0.0011]
[1772988775288,1.83808596,1936.7,1936.4,0.52296099]
[1772988777263,1.96319125,1936.9,1936.4,0.52296099]
[1772988777462,0.54719125,1936.8,1936.4,0.0011]
[1772988778174,1.29085557,1936.7,1936.4,0.0011]
[1772988778379,1.83804682,1936.7,1936.4,0.52296099]
[1772988779291,0.54719125,1936.7,1936.4,0.52296099]
[1772988779592,0.54719125,1936.8,1936.4,0.52296099]
[1772988781192,0.001,1936.6,1936.5,0.0011]
[1772988786674,0.55187527,1936.6,1936.5,0.0011]
[1772988787106,0.55187527,1936.6,1936.2,0.51245781]
[1772988787475,0.001,1936.6,1936.3,0.51135781]
[1772988787978,0.001,1936.6,1936.4,0.51135781]
[1772988793079,0.55187527,1936.6,1936.5,0.0011]
[1772988796679,0.001,1936.6,1936.5,0.0011]
[1772988796883,1.426,1937.0,1936.5,0.0011]
[1772988796884,0.55087527,1936.9,1936.6,0.51135781]
[1772988797084,0.55087527,1936.9,1936.5,0.51245781]
[1772988797280,0.55087527,1936.9,1936.5,1.80340417]
[1772988799017,0.55187527,1937.0,1936.6,0.51135781]
[1772988799619,0.55187527,1937.0,1936.6,1.80227001]
[1772988800106,0.55087527,1936.9,1936.6,0.51135781]
[1772988801627,0.001,1937.0,1936.7,0.51135781]
[1772988801834,0.55187527,1937.0,1936.7,0.51135781]
[1772988803129,0.001,1937.0,1936.7,0.51135781]
[1772988804433,0.001,1937.0,1936.8,1.29078893]
[1772988804729,0.001,1937.4,1936.9,0.51135781]
[1772988805030,0.55187527,1937.4,1936.9,0.51135781]
[1772988805190,0.001,1937.4,1936.9,0.51135781]
[1772988806895,0.55187527,1937.4,1936.8,1.29074339]
[1772988807089,0.55187527,1937.4,1936.7,1.29192042]
[1772988807294,0.55187527,1937.4,1936.7,1.80327823]
[1772988808932,0.55087527,1937.2,1936.8,0.51135781]
[1772988810433,0.55087527,1937.2,1936.7,0.0011]
[1772988810732,0.55087527,1937.2,1936.7,0.51245781]
[1772988811429,0.55087527,1937.2,1936.7,0.0011]
[1772988811430,0.55087527,1937.0,1936.7,0.0011]
[1772988811599,0.55087527,1937.0,1936.5,0.0011]
[1772988811925,0.55087527,1937.0,1936.5,0.51245781]
[1772988812132,0.55087527,1937.0,1936.5,0.0011]
[1772988812746,0.55087527,1937.0,1936.6,0.55382447]
[1772988814435,1.29072228,1936.9,1936.6,0.55382447]
[1772988814642,0.51049742,1936.8,1936.5,0.0011]
[1772988815037,1.29070646,1937.0,1936.6,0.55382447]
[1772988815244,1.80120388,1937.0,1936.6,0.55382447]
[1772988815532,0.51049742,1936.9,1936.6,0.55382447]
[1772988815734,0.51049742,1936.9,1936.5,1.29206965]
[1772988816337,0.51049742,1936.9,1936.5,1.84589412]
[1772988816728,0.51049742,1936.9,1936.5,1.29206965]
[1772988817511,0.51049742,1936.8,1936.5,0.0011]
[1772988817710,0.51049742,1936.8,1936.7,0.0011]
[1772988819342,1.80128635,1936.8,1936.7,0.0011]
[1772988820611,0.001,1936.9,1936.7,0.0011]
[1772988820839,1.80224683,1936.9,1936.7,0.0011]
[1772988821026,0.51049742,1936.8,1936.7,0.0011]
[1772988823818,0.51049742,1936.7,1936.5,0.0011]
[1772988824124,0.51049742,1936.7,1936.2,0.55492447]
[1772988824931,0.51049742,1936.7,1936.2,0.0011]
[1772988825822,0.51049742,1936.5,1936.2,0.0011]